[Event "RUS-ch Rapid Men 2018"]
[Site "Sochi"]
[Date "2018.10.05"]
[Round "5"]
[White "Timofeev, Artyom"]
[Black "Savitskiy, Sergey"]
[Result "1-0"]
[ECO "A25"]
[WhiteElo "2580"]
[BlackElo "2413"]
[Annotator "ChessBase"]
[PlyCount "77"]
[EventDate "2018.10.05"]
[EventType "swiss"]
[EventCountry "RUS"]
[SourceTitle "playchess.com"]
[Source "ChessBase"]
[SourceQuality "1"]
[TimeControl "900+10"]

1. c4 {[%emt 0:00:00]} e5 {[%emt 0:00:00]} 2. Nc3 {[%emt 0:00:00]} Nc6 {[%emt 0:00:00]} 3. g3 {[%emt 0:00:01]} f5 {[%emt 0:00:33]} 4. Bg2 {[%emt 0:00:06]} Nf6 {[%emt 0:00:02]} 5. e3 {[%emt 0:00:03]} g6 {[%emt 0:03:43]} 6. Nge2 {[%emt 0:00:06]} Bg7 {[%emt 0:00:02]} 7. d3 {[%emt 0:00:08]} O-O {[%emt 0:00:06]} 8. O-O {[%emt 0:00:02]} d6 {[%emt 0:00:05]} 9. b3 {[%emt 0:00:08]} Be6 {[%emt 0:00:24]} 10. Nd5 {[%emt 0:00:28]} Rb8 {[%emt 0:00:29]} 11. Bb2 {[%emt 0:00:12]} Bf7 {[%emt 0:00:57]} 12. Qd2 {[%emt 0:00:22]} Nxd5 {[%emt 0:02:01]} 13. cxd5 {[%emt 0:00:03]} Ne7 {[%emt 0:00:01]} 14. e4 {[%emt 0:00:02]} c6 {[%emt 0:00:01]} 15. dxc6 {[%emt 0:00:23]} bxc6 {[%emt 0:00:26]} 16. exf5 {[%emt 0:01:59]} Nxf5 {[%emt 0:00:23]} 17. d4 {[%emt 0:00:10]} exd4 {[%emt 0:02:51]} 18. Nxd4 {[%emt 0:00:03]} Nxd4 {[%emt 0:00:03]} 19. Bxd4 {[%emt 0:00:01]} Bxd4 {[%emt 0:00:02]} 20. Qxd4 {[%emt 0:00:02]} c5 {[%emt 0:00:02]} 21. Qc3 {[%emt 0:00:14]} a5 {[%emt 0:02:20]} 22. Rad1 {[%emt 0:00:20]} a4 {[%emt 0:00:24]} 23. bxa4 {[%emt 0:00:04]} Rb4 {[%emt 0:00:04]} 24. Bc6 {[%emt 0:02:35]} Bxa2 {[%emt 0:00:37]} 25. a5 {[%emt 0:00:16]} Qxa5 {[%emt 0:01:42]} 26. Rxd6 {[%emt 0:00:22]} Bf7 {[%emt 0:00:13]} 27. Rd7 {[%emt 0:00:41]} Qb6 {[%emt 0:00:50]} 28. Bd5 {[%emt 0:00:04]} Rd4 {[%emt 0:00:25]} 29. Bxf7+ {[%emt 0:02:54]} Rxf7 {[%emt 0:00:01]} 30. Rxf7 {[%emt 0:00:01]} Kxf7 {[%emt 0:00:01]} 31. Re1 {[%emt 0:00:01]} Qc6 {[%emt 0:01:08]} 32. h4 {[%emt 0:00:20]} Qd5 {[%emt 0:00:03]} 33. Kh2 {[%emt 0:00:50]} c4 {[%emt 0:00:04]} 34. Qe3 {[%emt 0:00:08]} Qd7 {[%emt 0:00:17]} 35. Ra1 {[%emt 0:00:12]} Rd3 {[%emt 0:00:18]} 36. Qh6 {[%emt 0:00:13]} Rd2 {[%emt 0:00:10]} 37. Qxh7+ {[%emt 0:00:42]} Kf6 {[%emt 0:00:05]} 38. Qh8+ {[%emt 0:01:29]} Kf7 {[%emt 0:00:12]} 39. Ra7 {[%emt 0:00:50]} 1-0

[Event "RUS-ch Rapid Men 2018"]
[Site "Sochi"]
[Date "2018.10.05"]
[Round "5"]
[White "Iljiushenok, Ilia"]
[Black "Kezin, Roman"]
[Result "1-0"]
[ECO "B24"]
[WhiteElo "2539"]
[BlackElo "2471"]
[Annotator "ChessBase"]
[PlyCount "75"]
[EventDate "2018.10.05"]
[EventType "swiss"]
[EventCountry "RUS"]
[SourceTitle "playchess.com"]
[Source "ChessBase"]
[SourceQuality "1"]
[TimeControl "900+10"]

1. e4 {[%emt 0:00:00]} c5 {[%emt 0:00:00]} 2. Nc3 {[%emt 0:00:00]} Nc6 {[%emt 0:00:00]} 3. Bb5 {[%emt 0:00:00]} Nd4 {[%emt 0:00:00]} 4. Bc4 {[%emt 0:00:00]} e6 {[%emt 0:00:05]} 5. Nge2 {[%emt 0:00:00]} Nf6 {[%emt 0:00:03]} 6. O-O {[%emt 0:00:33]} a6 {[%emt 0:01:11]} 7. a4 {[%emt 0:00:01]} Qc7 {[%emt 0:03:46]} 8. d3 {[%emt 0:00:16]} Be7 {[%emt 0:01:16]} 9. Nxd4 {[%emt 0:00:13]} cxd4 {[%emt 0:00:03]} 10. Ne2 {[%emt 0:00:03]} Nxe4 {[%emt 0:01:02]} 11. Nxd4 {[%emt 0:03:26]} Nf6 {[%emt 0:00:31]} 12. Bb3 {[%emt 0:00:03]} O-O {[%emt 0:00:08]} 13. Re1 {[%emt 0:00:01]} d5 {[%emt 0:03:25]} 14. Nf3 {[%emt 0:00:02]} h6 {[%emt 0:01:07]} 15. d4 {[%emt 0:00:31]} Bd7 {[%emt 0:00:30]} 16. a5 {[%emt 0:03:46]} Bb5 {[%emt 0:01:30]} 17. c3 {[%emt 0:00:09]} b6 {[%emt 0:00:01]} 18. axb6 {[%emt 0:00:12]} Qxb6 {[%emt 0:00:01]} 19. Bc2 {[%emt 0:00:16]} Nd7 {[%emt 0:01:04]} 20. Bf4 {[%emt 0:00:37]} Rfc8 {[%emt 0:00:07]} 21. Re3 {[%emt 0:00:49]} Qd8 {[%emt 0:01:14]} 22. Qd2 {[%emt 0:01:35]} a5 {[%emt 0:00:21]} 23. b3 {[%emt 0:02:37]} Ra7 {[%emt 0:00:40]} 24. h3 {[%emt 0:00:40]} a4 {[%emt 0:00:36]} 25. bxa4 {[%emt 0:00:23]} Rca8 {[%emt 0:00:01]} 26. Qd1 {[%emt 0:01:07]} Nf8 {[%emt 0:00:26]} 27. Ne5 {[%emt 0:00:20]} Bg5 {[%emt 0:00:09]} 28. Bxg5 {[%emt 0:00:10]} Qxg5 {[%emt 0:00:01]} 29. Rg3 {[%emt 0:00:02]} Qh4 {[%emt 0:00:17]} 30. Ra2 {[%emt 0:00:35]} Be8 {[%emt 0:00:11]} 31. Nd3 {[%emt 0:00:23]} Nd7 {[%emt 0:00:09]} 32. Rb2 {[%emt 0:00:19]} Kf8 {[%emt 0:00:14]} 33. Qb1 {[%emt 0:00:13]} Qe7 {[%emt 0:00:08]} 34. Rb4 {[%emt 0:00:12]} Kg8 {[%emt 0:00:03]} 35. Re3 {[%emt 0:00:12]} Rc7 {[%emt 0:00:14]} 36. Qb2 {[%emt 0:00:11]} Rac8 {[%emt 0:00:06]} 37. Nc1 {[%emt 0:00:25]} Nb8 {[%emt 0:00:01]} 38. Rxb8 {[%emt 0:00:07]} 1-0

[Event "RUS-ch Rapid Men 2018"]
[Site "Sochi"]
[Date "2018.10.05"]
[Round "5"]
[White "Gabrielian, Artur"]
[Black "Chizhikov, Vladislav"]
[Result "1-0"]
[ECO "C10"]
[WhiteElo "2499"]
[BlackElo "2304"]
[Annotator "ChessBase"]
[PlyCount "71"]
[EventDate "2018.10.05"]
[EventType "swiss"]
[EventCountry "RUS"]
[SourceTitle "playchess.com"]
[Source "ChessBase"]
[SourceQuality "1"]
[TimeControl "900+10"]

1. e4 {[%emt 0:00:00]} e6 {[%emt 0:00:00]} 2. d4 {[%emt 0:00:00]} d5 {[%emt 0:00:00]} 3. Nd2 {[%emt 0:00:00]} dxe4 {[%emt 0:00:00]} 4. Nxe4 {[%emt 0:00:00]} Nd7 {[%emt 0:00:00]} 5. Nf3 {[%emt 0:00:05]} Ngf6 {[%emt 0:00:02]} 6. Nxf6+ {[%emt 0:00:54]} Nxf6 {[%emt 0:00:03]} 7. Be3 {[%emt 0:00:19]} Nd5 {[%emt 0:00:17]} 8. Bd2 {[%emt 0:00:02]} c5 {[%emt 0:00:38]} 9. c4 {[%emt 0:00:27]} Nf6 {[%emt 0:00:11]} 10. dxc5 {[%emt 0:01:34]} Bxc5 {[%emt 0:00:09]} 11. b4 {[%emt 0:00:48]} Bd4 {[%emt 0:00:42]} 12. Nxd4 {[%emt 0:00:22]} Qxd4 {[%emt 0:00:02]} 13. Rc1 {[%emt 0:00:40]} O-O {[%emt 0:01:16]} 14. Be3 {[%emt 0:00:30]} Qb2 {[%emt 0:01:09]} 15. Qb3 {[%emt 0:00:29]} Qxb3 {[%emt 0:00:02]} 16. axb3 {[%emt 0:00:01]} b6 {[%emt 0:00:02]} 17. Be2 {[%emt 0:00:18]} Bb7 {[%emt 0:00:02]} 18. f3 {[%emt 0:00:02]} Rfc8 {[%emt 0:01:10]} 19. Kf2 {[%emt 0:00:10]} Kf8 {[%emt 0:00:02]} 20. Rhd1 {[%emt 0:00:07]} Ke7 {[%emt 0:00:03]} 21. b5 {[%emt 0:02:02]} a6 {[%emt 0:00:21]} 22. Bxb6 {[%emt 0:01:00]} axb5 {[%emt 0:00:03]} 23. cxb5 {[%emt 0:00:01]} Nd5 {[%emt 0:00:07]} 24. Bc5+ {[%emt 0:00:05]} Kd7 {[%emt 0:00:04]} 25. Rd2 {[%emt 0:00:40]} g5 {[%emt 0:00:18]} 26. b4 {[%emt 0:00:26]} Ra3 {[%emt 0:00:07]} 27. b6 {[%emt 0:00:24]} Raa8 {[%emt 0:00:38]} 28. Rcc2 {[%emt 0:00:12]} h6 {[%emt 0:01:47]} 29. Ra2 {[%emt 0:00:02]} Kc6 {[%emt 0:00:11]} 30. Ra7 {[%emt 0:00:20]} f5 {[%emt 0:01:36]} 31. Rc2 {[%emt 0:00:16]} Rcb8 {[%emt 0:04:08]} 32. g3 {[%emt 0:03:02]} e5 {[%emt 0:00:36]} 33. Bd3 {[%emt 0:00:16]} Nf6 {[%emt 0:02:14]} 34. Rxa8 {[%emt 0:00:49]} Rxa8 {[%emt 0:00:56]} 35. Be7+ {[%emt 0:00:02]} Kd5 {[%emt 0:00:01]} 36. Bc4+ 1-0

[Event "RUS-ch Rapid Men 2018"]
[Site "Sochi"]
[Date "2018.10.05"]
[Round "5"]
[White "Kurbedinov, Ramis"]
[Black "Kryakvin, Dmitry"]
[Result "1/2-1/2"]
[ECO "A06"]
[WhiteElo "2305"]
[BlackElo "2595"]
[Annotator "ChessBase"]
[PlyCount "86"]
[EventDate "2018.10.05"]
[EventType "swiss"]
[EventCountry "RUS"]
[SourceTitle "playchess.com"]
[Source "ChessBase"]
[SourceQuality "1"]
[TimeControl "900+10"]

1. Nf3 {[%emt 0:00:00]} d5 {[%emt 0:00:00]} 2. e3 {[%emt 0:00:00]} c6 {[%emt 0:00:00]} 3. c4 {[%emt 0:00:00]} Nf6 {[%emt 0:00:00]} 4. Nc3 {[%emt 0:00:00]} e6 {[%emt 0:00:04]} 5. b3 {[%emt 0:00:08]} Nbd7 {[%emt 0:00:07]} 6. Bb2 {[%emt 0:00:14]} Bd6 {[%emt 0:00:01]} 7. d4 {[%emt 0:00:10]} O-O {[%emt 0:00:14]} 8. Bd3 {[%emt 0:00:04]} dxc4 {[%emt 0:00:21]} 9. bxc4 {[%emt 0:00:57]} e5 {[%emt 0:00:01]} 10. O-O {[%emt 0:00:18]} Re8 {[%emt 0:00:02]} 11. Qc2 {[%emt 0:00:16]} exd4 {[%emt 0:00:10]} 12. exd4 {[%emt 0:00:06]} Nf8 {[%emt 0:00:02]} 13. Rfe1 {[%emt 0:01:02]} Rxe1+ 14. Rxe1 {[%emt 0:00:01]} Ng6 {[%emt 0:00:18]} 15. Ne4 {[%emt 0:01:06]} Bg4 {[%emt 0:02:08]} 16. Ne5 {[%emt 0:01:32]} Bxe5 {[%emt 0:01:32]} 17. dxe5 {[%emt 0:00:03]} Nxe4 {[%emt 0:00:01]} 18. Bxe4 {[%emt 0:00:18]} Qg5 {[%emt 0:00:31]} 19. Bxg6 {[%emt 0:02:26]} Qxg6 {[%emt 0:00:47]} 20. Qxg6 {[%emt 0:01:13]} hxg6 {[%emt 0:00:01]} 21. Ba3 {[%emt 0:00:04]} Be6 {[%emt 0:00:21]} 22. Rc1 {[%emt 0:00:02]} b6 {[%emt 0:00:17]} 23. Bd6 {[%emt 0:00:12]} c5 {[%emt 0:00:01]} 24. a4 {[%emt 0:00:45]} g5 {[%emt 0:00:48]} 25. h3 {[%emt 0:00:54]} Rc8 {[%emt 0:00:42]} 26. a5 {[%emt 0:00:22]} f6 {[%emt 0:00:39]} 27. axb6 {[%emt 0:00:15]} axb6 {[%emt 0:00:01]} 28. f4 {[%emt 0:01:41]} gxf4 {[%emt 0:02:17]} 29. exf6 {[%emt 0:00:04]} g5 {[%emt 0:00:31]} 30. h4 {[%emt 0:00:55]} gxh4 {[%emt 0:00:30]} 31. Bxf4 {[%emt 0:00:03]} Kf7 {[%emt 0:00:00]} 32. Be5 {[%emt 0:00:34]} Rg8 {[%emt 0:00:39]} 33. Bc7 {[%emt 0:02:01]} Rg4 {[%emt 0:00:01]} 34. Bxb6 {[%emt 0:00:32]} Bxc4 {[%emt 0:00:01]} 35. Bxc5 {[%emt 0:00:30]} Bd5 {[%emt 0:00:02]} 36. Rc2 {[%emt 0:00:06]} h3 {[%emt 0:00:07]} 37. g3 {[%emt 0:00:27]} Kxf6 {[%emt 0:00:20]} 38. Kh2 {[%emt 0:00:19]} Be6 {[%emt 0:00:22]} 39. Rf2+ {[%emt 0:00:18]} Kg6 {[%emt 0:00:15]} 40. Rf4 {[%emt 0:00:13]} Rg5 {[%emt 0:00:12]} 41. Bd4 {[%emt 0:00:06]} Bf5 {[%emt 0:00:52]} 42. g4 {[%emt 0:00:29]} Bxg4 {[%emt 0:00:11]} 43. Bf6 {[%emt 0:00:04]} Rh5 {[%emt 0:00:15]} 1/2-1/2

[Event "RUS-ch Rapid Men 2018"]
[Site "Sochi"]
[Date "2018.10.06"]
[Round "6"]
[White "Alekseev, Evgeny"]
[Black "Moiseenko, Vadim"]
[Result "1-0"]
[ECO "C55"]
[WhiteElo "2620"]
[BlackElo "2492"]
[Annotator "RC"]
[PlyCount "107"]
[EventDate "2018.10.05"]
[EventType "swiss"]
[EventCountry "RUS"]
[SourceTitle "playchess.com"]
[Source "ChessBase"]
[SourceQuality "1"]
[TimeControl "900+10"]

1. e4 {[%emt 0:00:00]} e5 {[%emt 0:00:01]} 2. Nf3 {[%emt 0:00:00]} Nc6 {[%emt 0:00:02]} 3. Bc4 {[%emt 0:00:07]} Nf6 {[%emt 0:00:04]} 4. d3 {[%emt 0:00:02]} h6 {[%emt 0:00:13]} 5. O-O {[%emt 0:00:17]} d6 {[%emt 0:00:07]} 6. c3 {[%emt 0:00:07]} g5 {[%emt 0:00:02]} 7. a4 {[%emt 0:01:29]} Bd7 {[%emt 0:01:00]} 8. b4 {[%emt 0:00:56]} a6 {[%emt 0:00:33]} 9. Na3 {[%emt 0:00:27]} g4 {[%emt 0:01:25]} 10. Ne1 {[%emt 0:00:12]} h5 {[%emt 0:00:06]} 11. f4 {[%emt 0:01:46]} Bh6 {[%emt 0:00:18]} 12. Nec2 {[%emt 0:01:13]} Qe7 {[%emt 0:00:12]} 13. Bb3 {[%emt 0:00:44]} g3 {[%emt 0:00:46]} 14. h3 {[%emt 0:00:19]} Ng4 {[%emt 0:00:07]} 15. fxe5 {[%emt 0:00:26]} Ncxe5 {[%emt 0:00:16]} 16. Bxh6 {[%emt 0:01:03]} Rxh6 {[%emt 0:00:13]} 17. Qd2 {[%emt 0:00:09]} Rf6 {[%emt 0:02:53]} 18. Rxf6 {[%emt 0:01:04]} Qxf6 {[%emt 0:00:02]} 19. d4 {[%emt 0:02:46]} Nf3+ {[%emt 0:00:29]} 20. gxf3 {[%emt 0:00:02]} Nf2 {[%emt 0:00:01]} 21. Rf1 {[%emt 0:00:07]} Nxh3+ {[%emt 0:01:36]} 22. Kg2 {[%emt 0:00:01]} Nf4+ {[%emt 0:00:26]} 23. Kxg3 {[%emt 0:00:02]} O-O-O {[%emt 0:00:02]} 24. Kf2 {[%emt 0:01:41]} Rg8 {[%emt 0:00:07]} 25. Ne1 {[%emt 0:00:21]} h4 {[%emt 0:02:04]} 26. Nc4 {[%emt 0:00:59]} h3 {[%emt 0:00:10]} 27. Rg1 {[%emt 0:01:51]} Rh8 {[%emt 0:02:57]} 28. Rh1 {[%emt 0:00:14]} Qg5 {[%emt 0:01:17]} 29. Ne3 {[%emt 0:01:01]} h2 {[%emt 0:00:44]} 30. N3g2 {[%emt 0:00:15]} Nh3+ {[%emt 0:00:13]} 31. Ke2 {[%emt 0:00:01]} Qg3 {[%emt 0:00:02]} 32. Qe3 {[%emt 0:00:02]} f5 {[%emt 0:00:20]} 33. f4 {[%emt 0:00:11]} Ng1+ {[%emt 0:00:57]} 34. Kd2 {[%emt 0:00:01]} Qg4 {[%emt 0:00:01]} 35. e5 {[%emt 0:00:17]} Rh3 {[%emt 0:00:03]} 36. Qf2 {[%emt 0:00:22]} dxe5 {[%emt 0:00:45]} 37. fxe5 {[%emt 0:00:18]} Qe4 {[%emt 0:00:23]} 38. Bc2 Qd5 {[%emt 0:00:10]} 39. Nd3 {[%emt 0:00:25]} Qa2 {[%emt 0:00:08]} 40. Ndf4 {[%emt 0:00:07]} Bxa4 {[%emt 0:00:04]} 41. Ne1 {[%emt 0:00:08]} Nf3+ {[%emt 0:00:10]} 42. Ke3 {[%emt 0:00:04]} Nxe1+ {[%emt 0:00:09]} 43. Nxh3 {[%emt 0:00:03]} Nxc2+ {[%emt 0:00:01]} 44. Kf4 {[%emt 0:00:07]} Qd5 {[%emt 0:00:02]} 45. Rxh2 {[%emt 0:00:13]} Qe4+ {[%emt 0:00:01]} 46. Kg5 {[%emt 0:00:01]} Qg4+ {[%emt 0:00:05]} 47. Kf6 {[%emt 0:00:02]} Kb8 {[%emt 0:00:24]} 48. Ng5 {[%emt 0:00:08]} f4 {[%emt 0:00:07]} 49. Qh4 {[%emt 0:00:24]} Qd7 {[%emt 0:00:09]} 50. Qh8+ {[%emt 0:00:06]} Ka7 {[%emt 0:00:01]} 51. e6 {[%emt 0:00:03]} Qc6 {[%emt 0:00:05]} 52. Rxc2 {[%emt 0:00:36]} Bxc2 {[%emt 0:00:03]} 53. Qh2 {[%emt 0:00:02]} f3 {[%emt 0:00:14]} 54. Qxc2 {[%emt 0:00:03]} 1-0

[Event "RUS-ch Rapid Men 2018"]
[Site "Sochi"]
[Date "2018.10.06"]
[Round "6"]
[White "Kryakvin, Dmitry"]
[Black "Smirnov, Timofey"]
[Result "1/2-1/2"]
[ECO "D10"]
[WhiteElo "2595"]
[BlackElo "2332"]
[Annotator "RC"]
[PlyCount "140"]
[EventDate "2018.10.05"]
[EventType "swiss"]
[EventCountry "RUS"]
[SourceTitle "playchess.com"]
[Source "ChessBase"]
[SourceQuality "1"]
[TimeControl "900+10"]

1. d4 {[%emt 0:00:00]} d5 {[%emt 0:00:00]} 2. c4 {[%emt 0:00:00]} c6 {[%emt 0:00:00]} 3. cxd5 {[%emt 0:00:00]} cxd5 {[%emt 0:00:00]} 4. Bg5 {[%emt 0:00:00]} Qb6 {[%emt 0:00:23]} 5. Qd2 {[%emt 0:00:34]} Nc6 {[%emt 0:00:13]} 6. Nc3 {[%emt 0:00:22]} e6 {[%emt 0:00:20]} 7. e3 {[%emt 0:00:11]} Bd6 {[%emt 0:00:22]} 8. Bd3 {[%emt 0:00:13]} Nge7 {[%emt 0:00:38]} 9. Nge2 {[%emt 0:00:11]} Bd7 {[%emt 0:00:52]} 10. Rc1 {[%emt 0:00:04]} O-O {[%emt 0:01:19]} 11. Bf4 {[%emt 0:00:18]} Bxf4 {[%emt 0:00:46]} 12. Nxf4 {[%emt 0:00:02]} Rfc8 {[%emt 0:01:47]} 13. O-O {[%emt 0:00:05]} Na5 {[%emt 0:00:32]} 14. b3 {[%emt 0:00:23]} Rc7 {[%emt 0:00:14]} 15. Bb1 {[%emt 0:01:52]} Rac8 {[%emt 0:00:49]} 16. Nd3 {[%emt 0:00:03]} Qd6 {[%emt 0:00:59]} 17. Nc5 {[%emt 0:01:14]} Be8 {[%emt 0:00:56]} 18. Bd3 {[%emt 0:04:26]} e5 {[%emt 0:02:27]} 19. Rfe1 {[%emt 0:00:18]} e4 {[%emt 0:00:43]} 20. Bf1 {[%emt 0:00:17]} b6 {[%emt 0:01:00]} 21. Na6 {[%emt 0:00:27]} Rb7 {[%emt 0:00:01]} 22. Nb5 {[%emt 0:00:44]} Qd8 {[%emt 0:00:29]} 23. Rxc8 {[%emt 0:00:42]} Nxc8 {[%emt 0:00:01]} 24. Rc1 {[%emt 0:00:02]} Nc6 {[%emt 0:00:52]} 25. g3 {[%emt 0:01:18]} g6 {[%emt 0:00:07]} 26. Nb4 {[%emt 0:00:40]} N8e7 {[%emt 0:00:59]} 27. Nxc6 {[%emt 0:00:33]} Bxc6 {[%emt 0:00:44]} 28. Qb4 {[%emt 0:00:19]} Qd7 {[%emt 0:00:11]} 29. a4 {[%emt 0:00:17]} a5 {[%emt 0:01:30]} 30. Qc3 {[%emt 0:00:37]} Rb8 {[%emt 0:00:01]} 31. b4 {[%emt 0:00:19]} Rc8 {[%emt 0:00:25]} 32. Qd2 {[%emt 0:00:28]} axb4 {[%emt 0:00:28]} 33. Qxb4 {[%emt 0:00:19]} Bxb5 {[%emt 0:00:01]} 34. Rxc8+ {[%emt 0:00:04]} Nxc8 {[%emt 0:00:02]} 35. Bxb5 {[%emt 0:00:13]} Qc7 {[%emt 0:00:01]} 36. Qb3 {[%emt 0:00:36]} Ne7 {[%emt 0:00:06]} 37. Kg2 {[%emt 0:00:25]} Kg7 {[%emt 0:00:14]} 38. Be2 {[%emt 0:00:16]} Qc6 {[%emt 0:00:16]} 39. Qb4 {[%emt 0:00:54]} Kf6 {[%emt 0:00:01]} 40. g4 {[%emt 0:00:10]} h6 {[%emt 0:00:12]} 41. h4 {[%emt 0:00:06]} Ke6 {[%emt 0:00:11]} 42. a5 {[%emt 0:00:30]} bxa5 {[%emt 0:00:10]} 43. Qxa5 {[%emt 0:00:01]} f5 {[%emt 0:00:35]} 44. h5 {[%emt 0:00:17]} fxg4 {[%emt 0:00:12]} 45. Bxg4+ {[%emt 0:00:01]} Kf7 {[%emt 0:00:02]} 46. Qd8 {[%emt 0:00:11]} Qf6 {[%emt 0:00:02]} 47. Qd7 {[%emt 0:00:09]} gxh5 {[%emt 0:00:21]} 48. Bxh5+ {[%emt 0:00:02]} Kg7 {[%emt 0:00:02]} 49. Kf1 {[%emt 0:00:16]} Qa6+ {[%emt 0:00:16]} 50. Be2 {[%emt 0:00:02]} Qf6 {[%emt 0:00:03]} 51. Ke1 {[%emt 0:00:15]} Kf8 {[%emt 0:00:05]} 52. Bb5 {[%emt 0:00:12]} Kf7 {[%emt 0:00:11]} 53. Be2 {[%emt 0:00:06]} Qc6 {[%emt 0:00:19]} 54. Qh3 {[%emt 0:00:36]} Qf6 {[%emt 0:00:17]} 55. Bh5+ {[%emt 0:00:06]} Kg7 {[%emt 0:00:01]} 56. Qd7 {[%emt 0:00:01]} Kf8 {[%emt 0:00:06]} 57. Bd1 {[%emt 0:00:40]} Qc6 {[%emt 0:00:10]} 58. Qd8+ {[%emt 0:00:11]} Qe8 {[%emt 0:00:05]} 59. Qc7 {[%emt 0:00:04]} Qc6 {[%emt 0:00:07]} 60. Qb8+ {[%emt 0:00:04]} Kg7 {[%emt 0:00:21]} 61. Qe5+ {[%emt 0:00:17]} Qf6 {[%emt 0:00:05]} 62. Qc7 {[%emt 0:00:00]} Kf8 {[%emt 0:00:16]} 63. Bh5 {[%emt 0:00:08]} Qg5 {[%emt 0:00:16]} 64. Qd8+ {[%emt 0:00:18]} Kg7 {[%emt 0:00:01]} 65. Be2 {[%emt 0:00:15]} Kf7 {[%emt 0:00:16]} 66. Kd2 {[%emt 0:00:26]} Qf5 {[%emt 0:00:14]} 67. Qh8 {[%emt 0:00:20]} Qf6 {[%emt 0:00:09]} 68. Bh5+ {[%emt 0:00:21]} Ke6 {[%emt 0:00:01]} 69. Bg4+ {[%emt 0:00:07]} Kf7 {[%emt 0:00:05]} 70. Bh5+ {[%emt 0:00:11]} Ke6 {[%emt 0:00:01]} 1/2-1/2

[Event "RUS-ch Rapid Men 2018"]
[Site "Sochi"]
[Date "2018.10.06"]
[Round "6"]
[White "Pridorozhni, Aleksei"]
[Black "Ozgibcev, Anatoly"]
[Result "1-0"]
[ECO "B01"]
[WhiteElo "2574"]
[BlackElo "2368"]
[Annotator "ChessBase"]
[PlyCount "97"]
[EventDate "2018.10.05"]
[EventType "swiss"]
[EventCountry "RUS"]
[SourceTitle "playchess.com"]
[Source "ChessBase"]
[SourceQuality "1"]
[TimeControl "900+10"]

1. e4 {[%emt 0:00:00]} d5 {[%emt 0:00:00]} 2. exd5 {[%emt 0:00:01]} Nf6 {[%emt 0:00:00]} 3. d4 {[%emt 0:00:14]} Bg4 {[%emt 0:00:03]} 4. Nf3 {[%emt 0:00:22]} Qxd5 {[%emt 0:00:09]} 5. Be2 {[%emt 0:00:02]} e6 {[%emt 0:01:05]} 6. h3 {[%emt 0:00:14]} Bh5 {[%emt 0:00:07]} 7. Nc3 {[%emt 0:00:05]} Qd6 {[%emt 0:00:22]} 8. O-O {[%emt 0:00:14]} Nc6 {[%emt 0:00:22]} 9. Nb5 {[%emt 0:00:48]} Qd7 {[%emt 0:01:21]} 10. Ne5 {[%emt 0:00:16]} Nxe5 {[%emt 0:00:23]} 11. dxe5 {[%emt 0:00:05]} Bxe2 {[%emt 0:00:05]} 12. Qxe2 {[%emt 0:00:02]} Nd5 {[%emt 0:00:16]} 13. c4 {[%emt 0:01:27]} Nb6 {[%emt 0:01:10]} 14. Rd1 {[%emt 0:01:12]} Qc6 {[%emt 0:00:24]} 15. b3 {[%emt 0:00:02]} Nd7 {[%emt 0:01:39]} 16. Bg5 {[%emt 0:05:32]} h6 {[%emt 0:00:50]} 17. Bh4 {[%emt 0:00:01]} g5 {[%emt 0:00:25]} 18. Bg3 {[%emt 0:00:02]} Bg7 {[%emt 0:01:12]} 19. b4 {[%emt 0:01:18]} a5 {[%emt 0:01:00]} 20. Nd4 {[%emt 0:00:11]} Qa6 {[%emt 0:00:31]} 21. b5 {[%emt 0:01:20]} Qb6 {[%emt 0:00:12]} 22. Kh1 {[%emt 0:00:16]} Qc5 {[%emt 0:01:17]} 23. Nb3 {[%emt 0:01:08]} Qe7 {[%emt 0:00:35]} 24. a4 {[%emt 0:00:02]} O-O {[%emt 0:00:20]} 25. f4 {[%emt 0:00:04]} Rfd8 {[%emt 0:00:26]} 26. Qe4 {[%emt 0:00:38]} Nc5 {[%emt 0:01:12]} 27. Nxc5 {[%emt 0:00:13]} Qxc5 {[%emt 0:00:08]} 28. fxg5 {[%emt 0:00:04]} hxg5 {[%emt 0:00:19]} 29. Qg4 {[%emt 0:00:12]} Qe3 {[%emt 0:00:55]} 30. Re1 {[%emt 0:00:14]} Qd2 {[%emt 0:00:10]} 31. Rad1 {[%emt 0:00:08]} Qc2 {[%emt 0:00:04]} 32. Rxd8+ {[%emt 0:00:44]} Rxd8 {[%emt 0:00:01]} 33. Qxg5 {[%emt 0:00:03]} Rd3 {[%emt 0:00:54]} 34. Qg4 {[%emt 0:00:25]} Qxa4 {[%emt 0:01:19]} 35. Bh4 {[%emt 0:00:03]} Qb4 {[%emt 0:00:10]} 36. Rf1 {[%emt 0:00:09]} a4 {[%emt 0:00:23]} 37. Bf6 {[%emt 0:00:02]} Qf8 {[%emt 0:00:01]} 38. Qe4 {[%emt 0:00:27]} Rg3 {[%emt 0:00:15]} 39. Kh2 {[%emt 0:00:06]} Rg6 {[%emt 0:00:05]} 40. Qxb7 {[%emt 0:00:39]} Bxf6 {[%emt 0:00:09]} 41. exf6 {[%emt 0:00:05]} Qd6+ {[%emt 0:00:17]} 42. Kh1 {[%emt 0:00:02]} a3 {[%emt 0:00:23]} 43. Qa8+ {[%emt 0:01:10]} Kh7 {[%emt 0:00:31]} 44. Qe8 {[%emt 0:00:47]} Qd2 {[%emt 0:00:34]} 45. Qxf7+ {[%emt 0:00:09]} Kh6 {[%emt 0:00:01]} 46. Qf8+ {[%emt 0:00:13]} Kh7 {[%emt 0:00:01]} 47. Qf7+ {[%emt 0:00:07]} Kh6 {[%emt 0:00:01]} 48. Qxg6+ {[%emt 0:00:05]} Kxg6 {[%emt 0:00:02]} 49. f7 {[%emt 0:00:01]} 1-0